[Event "Late-Titled-Tuesday-Blitz-February-13-2024"]
[Site "Chess.com"]
[Date "2024.02.13"]
[Round "2"]
[White "DeTimmerman"]
[Black "Chessraf-com"]
[Result "1-0"]
[WhiteElo "2720"]
[BlackElo "2351"]
[TimeControl "180+1"]
[EndTime "14:16:06 PST"]
[Termination "DeTimmerman won by resignation"]

1. b4 {[%clk 0:02:59.5]} 1... e5 {[%clk 0:02:57.1]} 2. Bb2 {[%clk 0:02:59.9]}
2... Bxb4 {[%clk 0:02:48.8]} 3. Bxe5 {[%clk 0:03:00.5]} 3... Nf6 {[%clk
0:02:48.3]} 4. Nc3 {[%clk 0:03:01]} 4... O-O {[%clk 0:02:47.5]} 5. Bxf6 {[%clk
0:03:01.3]} 5... Qxf6 {[%clk 0:02:43.5]} 6. Nd5 {[%clk 0:03:02.2]} 6... Qd6
{[%clk 0:02:41.4]} 7. c4 {[%clk 0:03:02.7]} 7... Nc6 {[%clk 0:02:32.2]} 8. Nf3
{[%clk 0:03:02.4]} 8... Ba5 {[%clk 0:02:25]} 9. e3 {[%clk 0:03:03]} 9... Ne7
{[%clk 0:02:22.8]} 10. Nxe7+ {[%clk 0:03:03.4]} 10... Qxe7 {[%clk 0:02:23.7]}
11. Be2 {[%clk 0:03:03.7]} 11... d6 {[%clk 0:02:22.8]} 12. O-O {[%clk
0:03:04.4]} 12... Bf5 {[%clk 0:02:13.1]} 13. d4 {[%clk 0:03:05.3]} 13... c6
{[%clk 0:02:06]} 14. Bd3 {[%clk 0:03:03.9]} 14... Be4 {[%clk 0:02:03.9]} 15. Rb1
{[%clk 0:03:02.5]} 15... Rab8 {[%clk 0:02:00.7]} 16. h3 {[%clk 0:02:58.5]} 16...
d5 {[%clk 0:01:55.6]} 17. Bxe4 {[%clk 0:02:27.6]} 17... dxe4 {[%clk 0:01:31.8]}
18. Nd2 {[%clk 0:02:27.6]} 18... Bc7 {[%clk 0:01:26.4]} 19. c5 {[%clk
0:02:16.3]} 19... f5 {[%clk 0:01:24]} 20. f3 {[%clk 0:02:10.9]} 20... exf3
{[%clk 0:01:14.9]} 21. Rxf3 {[%clk 0:02:11.8]} 21... Rbe8 {[%clk 0:01:07.7]} 22.
Qb3+ {[%clk 0:02:05.5]} 22... Kh8 {[%clk 0:01:07.7]} 23. Qxb7 {[%clk 0:02:01.6]}
23... Rb8 {[%clk 0:00:57.8]} 24. Qxc6 {[%clk 0:02:01.5]} 24... Rxb1+ {[%clk
0:00:58.7]} 25. Nxb1 {[%clk 0:02:02]} 25... Rb8 {[%clk 0:00:50.1]} 26. Nc3
{[%clk 0:02:02.2]} 26... Qf7 {[%clk 0:00:24.7]} 27. Qd5 {[%clk 0:01:55]} 27...
Rb1+ {[%clk 0:00:20.6]} 28. Rf1 {[%clk 0:01:55.3]} 28... Rxf1+ {[%clk
0:00:17.8]} 29. Kxf1 {[%clk 0:01:56.1]} 29... Qe7 {[%clk 0:00:17.4]} 30. Qa8+
{[%clk 0:01:51.6]} 30... Bd8 {[%clk 0:00:18]} 31. Nd5 {[%clk 0:01:50.7]} 31...
Qd7 {[%clk 0:00:16.4]} 32. Nf4 {[%clk 0:01:44.3]} 32... g5 {[%clk 0:00:15.7]}
33. c6 {[%clk 0:01:34.2]} 33... Qe8 {[%clk 0:00:09.8]} 34. Ne6 {[%clk
0:01:33.9]} 34... Qxe6 {[%clk 0:00:08.8]} 35. Qxd8+ {[%clk 0:01:34.2]} 35... Kg7
{[%clk 0:00:09.1]} 36. Qd7+ {[%clk 0:01:34.9]} 36... Kf6 {[%clk 0:00:09.5]} 37.
Qxe6+ {[%clk 0:01:34.6]} 37... Kxe6 {[%clk 0:00:10.4]} 38. d5+ {[%clk
0:01:35.1]} 38... Kd6 {[%clk 0:00:11.3]} 39. g4 {[%clk 0:01:34.8]} 1-0

[Event "Late-Titled-Tuesday-Blitz-February-13-2024"]
[Site "Chess.com"]
[Date "2024.02.13"]
[Round "2"]
[White "larsmandreassen"]
[Black "Slovak_fighter2000"]
[Result "0-1"]
[WhiteElo "2232"]
[BlackElo "2502"]
[TimeControl "180+1"]
[EndTime "14:16:10 PST"]
[Termination "Slovak_fighter2000 won by resignation"]

1. d4 {[%clk 0:02:17.8]} 1... Nf6 {[%clk 0:02:58.9]} 2. Nf3 {[%clk 0:02:18.7]}
2... e6 {[%clk 0:02:57.8]} 3. Bg5 {[%clk 0:02:19.1]} 3... c5 {[%clk 0:02:56.6]}
4. e3 {[%clk 0:02:18.9]} 4... b6 {[%clk 0:02:54.6]} 5. c3 {[%clk 0:02:18.6]}
5... Bb7 {[%clk 0:02:54.7]} 6. Bd3 {[%clk 0:02:19]} 6... Be7 {[%clk 0:02:54.6]}
7. Nbd2 {[%clk 0:02:19.4]} 7... O-O {[%clk 0:02:54.5]} 8. O-O {[%clk 0:02:19.8]}
8... cxd4 {[%clk 0:02:51.8]} 9. exd4 {[%clk 0:02:19.7]} 9... Nd5 {[%clk
0:02:51.4]} 10. Bxe7 {[%clk 0:02:19.3]} 10... Qxe7 {[%clk 0:02:52.3]} 11. Re1
{[%clk 0:02:19.5]} 11... Nc6 {[%clk 0:02:46.8]} 12. g3 {[%clk 0:02:18]} 12...
Rac8 {[%clk 0:02:38.7]} 13. Qe2 {[%clk 0:02:16.7]} 13... f5 {[%clk 0:02:18.7]}
14. c4 {[%clk 0:01:57.6]} 14... Ndb4 {[%clk 0:02:16.2]} 15. Bb1 {[%clk
0:01:56.6]} 15... Qf6 {[%clk 0:02:09.9]} 16. a3 {[%clk 0:01:52.9]} 16... Na6
{[%clk 0:02:04.8]} 17. d5 {[%clk 0:01:26.5]} 17... exd5 {[%clk 0:01:56.3]} 18.
cxd5 {[%clk 0:01:25.8]} 18... Nd4 {[%clk 0:01:54.9]} 19. Nxd4 {[%clk 0:01:02.7]}
19... Qxd4 {[%clk 0:01:55.8]} 20. Nf3 {[%clk 0:00:59]} 20... Qg4 {[%clk
0:01:44.8]} 21. Ba2 {[%clk 0:00:46.8]} 21... Nc5 {[%clk 0:01:40]} 22. Ne5 {[%clk
0:00:44.6]} 22... Qh3 {[%clk 0:01:32]} 23. b4 {[%clk 0:00:36.6]} 23... Ne4
{[%clk 0:01:29.6]} 24. Nxd7 {[%clk 0:00:32.3]} 24... Rfd8 {[%clk 0:01:26]} 25.
Ne5 {[%clk 0:00:28.9]} 25... Nc3 {[%clk 0:01:07.5]} 26. Qd2 {[%clk 0:00:24]}
26... Nxa2 {[%clk 0:01:05.1]} 27. Qxa2 {[%clk 0:00:22]} 27... Bxd5 {[%clk
0:01:02.4]} 0-1

[Event "Late-Titled-Tuesday-Blitz-February-13-2024"]
[Site "Chess.com"]
[Date "2024.02.13"]
[Round "2"]
[White "VladimirKramnik"]
[Black "LLRChess"]
[Result "1-0"]
[WhiteElo "2936"]
[BlackElo "2588"]
[TimeControl "180+1"]
[EndTime "14:16:13 PST"]
[Termination "VladimirKramnik won by checkmate"]

1. e4 {[%clk 0:03:00.9]} 1... c5 {[%clk 0:02:59.7]} 2. Nf3 {[%clk 0:03:00.8]}
2... d6 {[%clk 0:03:00.2]} 3. d4 {[%clk 0:03:00.9]} 3... cxd4 {[%clk 0:03:01.1]}
4. Nxd4 {[%clk 0:03:01.5]} 4... Nf6 {[%clk 0:03:01.7]} 5. Nc3 {[%clk 0:03:02.1]}
5... Nc6 {[%clk 0:03:02.2]} 6. Bc4 {[%clk 0:03:01]} 6... e6 {[%clk 0:03:02]} 7.
Be3 {[%clk 0:02:59.3]} 7... a6 {[%clk 0:03:02.1]} 8. Qe2 {[%clk 0:02:56]} 8...
Bd7 {[%clk 0:03:02.4]} 9. Bb3 {[%clk 0:02:53.2]} 9... b5 {[%clk 0:02:59.4]} 10.
O-O-O {[%clk 0:02:46.3]} 10... Na5 {[%clk 0:02:59]} 11. a3 {[%clk 0:02:26.4]}
11... Nxb3+ {[%clk 0:02:56.4]} 12. Nxb3 {[%clk 0:02:18.8]} 12... Rc8 {[%clk
0:02:56.3]} 13. Bd2 {[%clk 0:02:02.8]} 13... Qb6 {[%clk 0:02:47.2]} 14. Rhe1
{[%clk 0:01:52.6]} 14... Be7 {[%clk 0:02:43.9]} 15. g4 {[%clk 0:01:50.2]} 15...
h6 {[%clk 0:02:35.6]} 16. f4 {[%clk 0:01:47.6]} 16... a5 {[%clk 0:02:24.7]} 17.
e5 {[%clk 0:01:45.8]} 17... dxe5 {[%clk 0:02:08.3]} 18. fxe5 {[%clk 0:01:45.4]}
18... Nh7 {[%clk 0:02:08.8]} 19. Be3 {[%clk 0:01:37]} 19... Qc7 {[%clk
0:02:00.7]} 20. Nxb5 {[%clk 0:01:28.5]} 20... Bxb5 {[%clk 0:01:54.2]} 21. Qxb5+
{[%clk 0:01:27]} 21... Kf8 {[%clk 0:01:54.8]} 22. Re2 {[%clk 0:01:18.8]} 22...
a4 {[%clk 0:01:44.7]} 23. Nc5 {[%clk 0:01:07.8]} 23... Ng5 {[%clk 0:01:22.4]}
24. Rd7 {[%clk 0:00:53.9]} 24... Qxe5 {[%clk 0:01:18.6]} 25. Qb7 {[%clk
0:00:38.4]} 25... Re8 {[%clk 0:01:04.5]} 26. Rxe7 {[%clk 0:00:33.7]} 26... Rxe7
{[%clk 0:01:03.9]} 27. Qc8+ {[%clk 0:00:33.1]} 27... Re8 {[%clk 0:01:04.2]} 28.
Nd7+ {[%clk 0:00:33]} 28... Ke7 {[%clk 0:01:03.1]} 29. Bc5+ {[%clk 0:00:31.6]}
29... Qxc5 {[%clk 0:00:54.6]} 30. Qxc5+ {[%clk 0:00:32]} 30... Kxd7 {[%clk
0:00:55.1]} 31. Rd2# {[%clk 0:00:31.6]} 1-0

[Event "Late-Titled-Tuesday-Blitz-February-13-2024"]
[Site "Chess.com"]
[Date "2024.02.13"]
[Round "2"]
[White "nj123456"]
[Black "FMJoseHerrera"]
[Result "1-0"]
[WhiteElo "2353"]
[BlackElo "2700"]
[TimeControl "180+1"]
[EndTime "14:16:15 PST"]
[Termination "nj123456 won on time"]

1. e4 {[%clk 0:03:00.9]} 1... c5 {[%clk 0:02:59.6]} 2. c3 {[%clk 0:02:59.5]}
2... Nf6 {[%clk 0:02:57.5]} 3. e5 {[%clk 0:02:59.5]} 3... Nd5 {[%clk 0:02:57.8]}
4. d4 {[%clk 0:03:00.4]} 4... cxd4 {[%clk 0:02:57.2]} 5. Nf3 {[%clk 0:03:01.3]}
5... e6 {[%clk 0:02:56.5]} 6. cxd4 {[%clk 0:03:00.4]} 6... d6 {[%clk 0:02:56.8]}
7. Bc4 {[%clk 0:02:59.5]} 7... Nb6 {[%clk 0:02:55.7]} 8. Bb3 {[%clk 0:02:59.4]}
8... Nc6 {[%clk 0:02:55.4]} 9. Qe2 {[%clk 0:02:59.2]} 9... dxe5 {[%clk
0:02:49.3]} 10. dxe5 {[%clk 0:03:00.1]} 10... Bb4+ {[%clk 0:02:49.5]} 11. Nc3
{[%clk 0:02:59]} 11... Nd4 {[%clk 0:02:49.1]} 12. Nxd4 {[%clk 0:02:58.3]} 12...
Qxd4 {[%clk 0:02:50]} 13. O-O {[%clk 0:02:57.7]} 13... O-O {[%clk 0:02:49.7]}
14. Rd1 {[%clk 0:02:52]} 14... Qh4 {[%clk 0:02:49.8]} 15. Ne4 {[%clk 0:02:50.9]}
15... h6 {[%clk 0:02:23.5]} 16. Rd4 {[%clk 0:02:49.7]} 16... Qe7 {[%clk
0:02:14.1]} 17. Bxh6 {[%clk 0:02:36.5]} 17... Nd5 {[%clk 0:01:29.3]} 18. Bxg7
{[%clk 0:01:04.9]} 18... Kxg7 {[%clk 0:01:28.6]} 19. Qg4+ {[%clk 0:01:04.2]}
19... Kh7 {[%clk 0:01:29.2]} 20. Qh5+ {[%clk 0:01:04.1]} 20... Kg7 {[%clk
0:01:29.6]} 21. Nf6 {[%clk 0:00:50]} 21... Nxf6 {[%clk 0:01:05.1]} 22. Qg5+
{[%clk 0:00:49.5]} 22... Kh8 {[%clk 0:01:05.6]} 23. exf6 {[%clk 0:00:48]} 1-0

[Event "Late-Titled-Tuesday-Blitz-February-13-2024"]
[Site "Chess.com"]
[Date "2024.02.13"]
[Round "2"]
[White "norwaytoadog"]
[Black "JG-17"]
[Result "0-1"]
[WhiteElo "2204"]
[BlackElo "2484"]
[TimeControl "180+1"]
[EndTime "14:16:17 PST"]
[Termination "JG-17 won on time"]

1. e4 {[%clk 0:02:59.6]} 1... c5 {[%clk 0:02:56.3]} 2. Nf3 {[%clk 0:02:59.9]}
2... d6 {[%clk 0:02:56.3]} 3. Bb5+ {[%clk 0:02:59.9]} 3... Bd7 {[%clk
0:02:56.1]} 4. Bxd7+ {[%clk 0:02:59.5]} 4... Qxd7 {[%clk 0:02:57]} 5. O-O {[%clk
0:02:59.5]} 5... Nf6 {[%clk 0:02:57.5]} 6. Qe2 {[%clk 0:02:59.5]} 6... Nc6
{[%clk 0:02:57.1]} 7. c3 {[%clk 0:02:59.8]} 7... e5 {[%clk 0:02:52.5]} 8. Rd1
{[%clk 0:02:53.6]} 8... Be7 {[%clk 0:02:52.7]} 9. d4 {[%clk 0:02:53.4]} 9...
cxd4 {[%clk 0:02:52.7]} 10. cxd4 {[%clk 0:02:53.5]} 10... exd4 {[%clk
0:02:53.3]} 11. Nxd4 {[%clk 0:02:53.1]} 11... O-O {[%clk 0:02:52.2]} 12. Nc3
{[%clk 0:02:47.5]} 12... Rfe8 {[%clk 0:02:47.9]} 13. Bg5 {[%clk 0:02:46]} 13...
Rad8 {[%clk 0:02:44.8]} 14. Nf5 {[%clk 0:02:33.8]} 14... Qe6 {[%clk 0:02:38.3]}
15. Qf3 {[%clk 0:02:13.3]} 15... Ne5 {[%clk 0:02:35.7]} 16. Qh3 {[%clk
0:02:00.6]} 16... h6 {[%clk 0:02:33.3]} 17. Bxh6 {[%clk 0:01:16.2]} 17... gxh6
{[%clk 0:02:27.5]} 18. Qxh6 {[%clk 0:01:15.5]} 18... Bf8 {[%clk 0:02:27.5]} 19.
Qg5+ {[%clk 0:01:11.8]} 19... Ng6 {[%clk 0:02:27.8]} 20. Rd3 {[%clk 0:00:59.9]}
20... Nh7 {[%clk 0:02:19.6]} 21. Qh5 {[%clk 0:00:56.2]} 21... Nf6 {[%clk
0:02:11.1]} 22. Qg5 {[%clk 0:00:54.9]} 22... Nxe4 {[%clk 0:02:07.4]} 23. Nxe4
{[%clk 0:00:38.2]} 23... Qxe4 {[%clk 0:02:08.3]} 24. Re3 {[%clk 0:00:32.2]}
24... Qf4 {[%clk 0:02:06.9]} 25. Qh5 {[%clk 0:00:28.3]} 25... Rxe3 {[%clk
0:02:05.2]} 26. fxe3 {[%clk 0:00:23.2]} 26... Qe5 {[%clk 0:02:01]} 27. Rf1
{[%clk 0:00:20.9]} 27... Qh8 {[%clk 0:01:59.7]} 28. Qg5 {[%clk 0:00:18.3]} 28...
Re8 {[%clk 0:01:59.1]} 29. g3 {[%clk 0:00:16.4]} 29... Re5 {[%clk 0:01:59.2]}
30. h4 {[%clk 0:00:15.8]} 30... Kh7 {[%clk 0:01:43.9]} 31. Qh5+ {[%clk
0:00:10.1]} 31... Kg8 {[%clk 0:01:42.6]} 32. Qg5 {[%clk 0:00:10]} 32... Kh7
{[%clk 0:01:42.8]} 33. h5 {[%clk 0:00:10.1]} 33... Ne7 {[%clk 0:01:42.6]} 34. g4
{[%clk 0:00:05.2]} 34... Nxf5 {[%clk 0:01:42.6]} 35. Rxf5 {[%clk 0:00:05.5]}
35... Qg7 {[%clk 0:01:39.6]} 36. Rxe5 {[%clk 0:00:03.8]} 36... Qxe5 {[%clk
0:01:35.6]} 37. Qd8 {[%clk 0:00:01.7]} 37... Qxe3+ {[%clk 0:01:35.2]} 38. Kg2
{[%clk 0:00:02.2]} 38... Qe4+ {[%clk 0:01:34.2]} 39. Kg3 {[%clk 0:00:02.2]}
39... Qe3+ {[%clk 0:01:33.9]} 40. Kg2 {[%clk 0:00:02.3]} 40... Be7 {[%clk
0:01:33.2]} 41. Qe8 {[%clk 0:00:01.1]} 41... Qe2+ {[%clk 0:01:32.7]} 0-1

[Event "Late-Titled-Tuesday-Blitz-February-13-2024"]
[Site "Chess.com"]
[Date "2024.02.13"]
[Round "2"]
[White "C_K_G"]
[Black "Artemiki"]
[Result "1-0"]
[WhiteElo "2143"]
[BlackElo "2433"]
[TimeControl "180+1"]
[EndTime "14:16:22 PST"]
[Termination "C_K_G won on time"]

1. e4 {[%clk 0:02:55.4]} 1... c5 {[%clk 0:02:58.8]} 2. Nf3 {[%clk 0:02:55.1]}
2... e6 {[%clk 0:02:59.1]} 3. d4 {[%clk 0:02:55.7]} 3... cxd4 {[%clk 0:02:59.5]}
4. Nxd4 {[%clk 0:02:56.3]} 4... Nc6 {[%clk 0:02:59.8]} 5. Be2 {[%clk 0:02:53.7]}
5... Qc7 {[%clk 0:02:55.3]} 6. Nc3 {[%clk 0:02:44.2]} 6... a6 {[%clk 0:02:53.8]}
7. O-O {[%clk 0:02:42.7]} 7... Nf6 {[%clk 0:02:48.4]} 8. Be3 {[%clk 0:02:40.8]}
8... Be7 {[%clk 0:02:42]} 9. f4 {[%clk 0:02:38.6]} 9... d6 {[%clk 0:02:41.9]}
10. Bf3 {[%clk 0:02:34.7]} 10... Nxd4 {[%clk 0:02:09.1]} 11. Bxd4 {[%clk
0:02:32]} 11... O-O {[%clk 0:02:08.8]} 12. g4 {[%clk 0:02:20.5]} 12... e5 {[%clk
0:01:29.9]} 13. Be3 {[%clk 0:02:16.6]} 13... d5 {[%clk 0:01:20]} 14. fxe5 {[%clk
0:01:32.5]} 14... Nxe4 {[%clk 0:01:13.4]} 15. Nxd5 {[%clk 0:01:25.5]} 15... Qxe5
{[%clk 0:01:10.1]} 16. Bf4 {[%clk 0:01:19]} 16... Bc5+ {[%clk 0:01:04.1]} 17.
Kg2 {[%clk 0:01:14.7]} 17... Qxb2 {[%clk 0:00:09.4]} 18. Bxe4 {[%clk 0:01:12.3]}
18... Be6 {[%clk 0:00:09]} 19. Nc7 {[%clk 0:00:59]} 19... Rad8 {[%clk
0:00:08.9]} 20. Qe2 {[%clk 0:00:59.2]} 20... Qc3 {[%clk 0:00:05.2]} 21. Nxe6
{[%clk 0:00:57.7]} 21... fxe6 {[%clk 0:00:05.1]} 22. Rad1 {[%clk 0:00:53.6]}
22... e5 {[%clk 0:00:05.2]} 23. Bg3 {[%clk 0:00:53.3]} 1-0

[Event "Late-Titled-Tuesday-Blitz-February-13-2024"]
[Site "Chess.com"]
[Date "2024.02.13"]
[Round "2"]
[White "xakevicius91"]
[Black "Kirill_Klukin"]
[Result "0-1"]
[WhiteElo "2540"]
[BlackElo "2820"]
[TimeControl "180+1"]
[EndTime "14:16:31 PST"]
[Termination "Kirill_Klukin won by resignation"]

1. e4 {[%clk 0:02:57.9]} 1... c5 {[%clk 0:03:00.1]} 2. Nf3 {[%clk 0:02:57.3]}
2... g6 {[%clk 0:03:00.3]} 3. Bc4 {[%clk 0:02:56.3]} 3... Bg7 {[%clk 0:03:00.3]}
4. O-O {[%clk 0:02:55.8]} 4... Nc6 {[%clk 0:03:00.4]} 5. c3 {[%clk 0:02:53.4]}
5... e6 {[%clk 0:03:00.6]} 6. Bb3 {[%clk 0:02:53]} 6... Nge7 {[%clk 0:03:00.6]}
7. d3 {[%clk 0:02:51.5]} 7... d5 {[%clk 0:03:00.6]} 8. Nbd2 {[%clk 0:02:46.1]}
8... O-O {[%clk 0:03:00]} 9. Qe2 {[%clk 0:02:44.5]} 9... Qc7 {[%clk 0:02:57.7]}
10. Re1 {[%clk 0:02:40.8]} 10... b5 {[%clk 0:02:53.6]} 11. Bc2 {[%clk
0:02:38.7]} 11... Bb7 {[%clk 0:02:51.3]} 12. Nf1 {[%clk 0:02:38.6]} 12... b4
{[%clk 0:02:49.6]} 13. Bd2 {[%clk 0:02:37.3]} 13... bxc3 {[%clk 0:02:45.6]} 14.
bxc3 {[%clk 0:02:38.2]} 14... dxe4 {[%clk 0:02:45.9]} 15. dxe4 {[%clk
0:02:35.6]} 15... Rfd8 {[%clk 0:02:39.6]} 16. h4 {[%clk 0:02:29]} 16... Qa5
{[%clk 0:02:38.5]} 17. Qe3 {[%clk 0:02:07.8]} 17... Rxd2 {[%clk 0:02:13]} 18.
Qxd2 {[%clk 0:01:08]} 18... Bxc3 {[%clk 0:02:03.7]} 19. Qh6 {[%clk 0:01:02.3]}
19... Bg7 {[%clk 0:02:02.8]} 20. Qg5 {[%clk 0:00:56.1]} 20... Bxa1 {[%clk
0:02:00.6]} 21. Rxa1 {[%clk 0:00:57]} 21... Qc3 {[%clk 0:02:01]} 22. Rc1 {[%clk
0:00:50.2]} 22... Rd8 {[%clk 0:01:43.7]} 23. Bb3 {[%clk 0:00:49.3]} 23... Qb2
{[%clk 0:01:25.8]} 24. Qxc5 {[%clk 0:00:44.6]} 24... Rc8 {[%clk 0:01:08.2]} 25.
Qc3 {[%clk 0:00:40.2]} 25... Qxc3 {[%clk 0:01:08]} 26. Rxc3 {[%clk 0:00:41.1]}
26... Na5 {[%clk 0:01:06.8]} 27. Rxc8+ {[%clk 0:00:39.4]} 27... Nxc8 {[%clk
0:01:07.7]} 28. N1d2 {[%clk 0:00:38.7]} 28... Nd6 {[%clk 0:01:05.5]} 29. Bc2
{[%clk 0:00:38.4]} 29... Kf8 {[%clk 0:01:04.6]} 30. Nd4 {[%clk 0:00:34]} 30...
Ndc4 {[%clk 0:01:00.8]} 31. Nxc4 {[%clk 0:00:33.7]} 31... Nxc4 {[%clk
0:01:01.7]} 32. f3 {[%clk 0:00:32]} 32... Ke7 {[%clk 0:01:01.7]} 33. Kf2 {[%clk
0:00:31.7]} 33... Kd6 {[%clk 0:00:53.7]} 34. Ke2 {[%clk 0:00:32]} 34... Kc5
{[%clk 0:00:53]} 35. Nb3+ {[%clk 0:00:27.3]} 35... Kb4 {[%clk 0:00:53.3]} 36.
Nd4 {[%clk 0:00:24.6]} 36... Kc3 {[%clk 0:00:52.4]} 0-1

[Event "Late-Titled-Tuesday-Blitz-February-13-2024"]
[Site "Chess.com"]
[Date "2024.02.13"]
[Round "2"]
[White "baki83"]
[Black "WilsonPalencia21"]
[Result "1-0"]
[WhiteElo "2858"]
[BlackElo "2554"]
[TimeControl "180+1"]
[EndTime "14:16:33 PST"]
[Termination "baki83 won by resignation"]

1. e4 {[%clk 0:03:00.9]} 1... c5 {[%clk 0:02:59]} 2. Nf3 {[%clk 0:03:01.3]} 2...
d6 {[%clk 0:02:59]} 3. Bb5+ {[%clk 0:03:01.5]} 3... Nd7 {[%clk 0:02:59]} 4. O-O
{[%clk 0:03:01]} 4... Nf6 {[%clk 0:02:58.6]} 5. Re1 {[%clk 0:03:00.8]} 5... a6
{[%clk 0:02:59.1]} 6. Bf1 {[%clk 0:03:01.3]} 6... b6 {[%clk 0:02:59.3]} 7. c4
{[%clk 0:03:01.9]} 7... Bb7 {[%clk 0:02:59.6]} 8. Nc3 {[%clk 0:03:02.6]} 8... e6
{[%clk 0:02:58.7]} 9. d4 {[%clk 0:03:03.1]} 9... cxd4 {[%clk 0:02:59.2]} 10.
Nxd4 {[%clk 0:03:03.5]} 10... Rc8 {[%clk 0:03:00]} 11. b3 {[%clk 0:03:02.6]}
11... b5 {[%clk 0:02:53.8]} 12. cxb5 {[%clk 0:02:58.9]} 12... Rxc3 {[%clk
0:02:50.3]} 13. Bb2 {[%clk 0:02:57.9]} 13... Rc8 {[%clk 0:02:42.7]} 14. bxa6
{[%clk 0:02:58.2]} 14... Ba8 {[%clk 0:02:38.2]} 15. Nb5 {[%clk 0:02:55]} 15...
d5 {[%clk 0:02:23.6]} 16. exd5 {[%clk 0:02:47.5]} 16... Bxd5 {[%clk 0:02:22.5]}
17. Rc1 {[%clk 0:02:44.4]} 17... Bc5 {[%clk 0:02:09.2]} 18. Rxc5 {[%clk
0:01:47.4]} 18... Nxc5 {[%clk 0:02:01.1]} 19. Bxf6 {[%clk 0:01:39.2]} 19... gxf6
{[%clk 0:01:58]} 20. a7 {[%clk 0:01:38.4]} 20... O-O {[%clk 0:01:50.3]} 21. Qd4
{[%clk 0:01:30.1]} 21... Ba8 {[%clk 0:01:33.7]} 22. Nd6 {[%clk 0:01:24.1]} 22...
Rc6 {[%clk 0:01:25]} 23. Rd1 {[%clk 0:01:24]} 23... Qe7 {[%clk 0:01:07.4]} 24.
b4 {[%clk 0:01:22.4]} 24... Nb7 {[%clk 0:00:56.5]} 25. Ne4 {[%clk 0:01:14.9]}
25... e5 {[%clk 0:00:49.1]} 26. Qe3 {[%clk 0:01:11.9]} 26... f5 {[%clk
0:00:45.6]} 27. b5 {[%clk 0:01:10.6]} 27... Rg6 {[%clk 0:00:45.2]} 28. Nc3
{[%clk 0:01:07.7]} 28... Nd6 {[%clk 0:00:42.2]} 29. Nd5 {[%clk 0:01:06]} 29...
Bxd5 {[%clk 0:00:27]} 30. Rxd5 {[%clk 0:01:06.9]} 30... Ne4 {[%clk 0:00:15.5]}
31. b6 {[%clk 0:01:02.8]} 31... Nf6 {[%clk 0:00:04.5]} 32. Rxe5 {[%clk
0:00:58.5]} 32... Qb7 {[%clk 0:00:04.6]} 33. Re7 {[%clk 0:00:56.2]} 33... Ng4
{[%clk 0:00:04.8]} 34. Rxb7 {[%clk 0:00:55.1]} 34... Nxe3 {[%clk 0:00:04.4]} 35.
fxe3 {[%clk 0:00:56]} 35... Rd6 {[%clk 0:00:02.9]} 36. Rb8 {[%clk 0:00:55.8]}
36... Rdd8 {[%clk 0:00:03.1]} 37. Rxd8 {[%clk 0:00:55.6]} 1-0

[Event "Late-Titled-Tuesday-Blitz-February-13-2024"]
[Site "Chess.com"]
[Date "2024.02.13"]
[Round "2"]
[White "DonkyDonkyDonkey"]
[Black "Willhaven3"]
[Result "1-0"]
[WhiteElo "2967"]
[BlackElo "2623"]
[TimeControl "180+1"]
[EndTime "14:16:40 PST"]
[Termination "DonkyDonkyDonkey won by checkmate"]

1. e4 {[%clk 0:03:00.9]} 1... c5 {[%clk 0:03:00.1]} 2. Nc3 {[%clk 0:03:01.2]}
2... Nc6 {[%clk 0:03:00.1]} 3. f4 {[%clk 0:03:01.9]} 3... e6 {[%clk 0:02:49.4]}
4. Nf3 {[%clk 0:03:02.2]} 4... a6 {[%clk 0:02:49.5]} 5. a4 {[%clk 0:03:01.8]}
5... d5 {[%clk 0:02:49.2]} 6. e5 {[%clk 0:03:01.7]} 6... Nh6 {[%clk 0:02:48.9]}
7. g3 {[%clk 0:03:00.6]} 7... Nf5 {[%clk 0:02:48.8]} 8. Bg2 {[%clk 0:03:00.9]}
8... h5 {[%clk 0:02:48.9]} 9. O-O {[%clk 0:03:01]} 9... Be7 {[%clk 0:02:45.3]}
10. d3 {[%clk 0:03:00]} 10... Qb6 {[%clk 0:02:44.7]} 11. Ne2 {[%clk 0:02:56.2]}
11... Bd7 {[%clk 0:02:43.2]} 12. c3 {[%clk 0:02:56.4]} 12... d4 {[%clk
0:02:38.4]} 13. h4 {[%clk 0:02:45.6]} 13... Rd8 {[%clk 0:02:26.1]} 14. Kh2
{[%clk 0:02:45.7]} 14... Na5 {[%clk 0:01:53.6]} 15. b4 {[%clk 0:02:36.7]} 15...
cxb4 {[%clk 0:01:46.4]} 16. cxb4 {[%clk 0:02:37.6]} 16... Qxb4 {[%clk
0:01:41.4]} 17. Bd2 {[%clk 0:02:37.3]} 17... Qb6 {[%clk 0:01:36]} 18. Rb1 {[%clk
0:02:36.6]} 18... Qc7 {[%clk 0:01:35.2]} 19. Nexd4 {[%clk 0:02:33.7]} 19... Nh6
{[%clk 0:01:23.4]} 20. Qe1 {[%clk 0:02:22.5]} 20... Ng4+ {[%clk 0:01:17.4]} 21.
Kh1 {[%clk 0:02:22.9]} 21... b6 {[%clk 0:01:14.4]} 22. Rxb6 {[%clk 0:02:21.5]}
22... Qxb6 {[%clk 0:01:09.4]} 23. Bxa5 {[%clk 0:02:22.2]} 23... Qa7 {[%clk
0:01:01.7]} 24. Bxd8 {[%clk 0:02:21.8]} 24... Bxd8 {[%clk 0:01:02.6]} 25. Qb4
{[%clk 0:02:16.1]} 25... Be7 {[%clk 0:01:00.5]} 26. Qb3 {[%clk 0:01:58.8]} 26...
O-O {[%clk 0:00:58.2]} 27. f5 {[%clk 0:01:59.2]} 27... Rb8 {[%clk 0:00:49.5]}
28. Qa2 {[%clk 0:01:59.5]} 28... Qb6 {[%clk 0:00:39.9]} 29. fxe6 {[%clk
0:01:53.5]} 29... fxe6 {[%clk 0:00:40.8]} 30. a5 {[%clk 0:01:32.2]} 30... Qb2
{[%clk 0:00:40]} 31. Qxb2 {[%clk 0:01:30.5]} 31... Rxb2 {[%clk 0:00:40.9]} 32.
Rc1 {[%clk 0:01:28]} 32... Nf2+ {[%clk 0:00:28.7]} 33. Kg1 {[%clk 0:01:26.9]}
33... Nxd3 {[%clk 0:00:29.6]} 34. Rc7 {[%clk 0:01:25.1]} 34... Nc5 {[%clk
0:00:29.6]} 35. Ng5 {[%clk 0:01:18.6]} 35... Rd2 {[%clk 0:00:14.1]} 36. Ndxe6
{[%clk 0:00:56.8]} 36... Bxe6 {[%clk 0:00:09.5]} 37. Rxe7 {[%clk 0:00:54.1]}
37... Bd5 {[%clk 0:00:08.3]} 38. Re8# {[%clk 0:00:54.5]} 1-0